[Event "Early-Titled-Tuesday-Blitz-May-07-2024"]
[Site "Chess.com"]
[Date "2024.05.07"]
[Round "4"]
[White "LikeWater"]
[Black "Iball95"]
[Result "0-1"]
[WhiteElo "2685"]
[BlackElo "2926"]
[TimeControl "180+1"]
[EndTime "8:42:49 PDT"]
[Termination "Iball95 won on time"]

1. e4 {[%clk 0:03:00.9]} 1... c5 {[%clk 0:02:59.3]} 2. c3 {[%clk 0:02:59.5]}
2... e6 {[%clk 0:02:57.1]} 3. d4 {[%clk 0:02:55.8]} 3... d5 {[%clk 0:02:57.3]}
4. exd5 {[%clk 0:02:49.5]} 4... exd5 {[%clk 0:02:58.2]} 5. Nf3 {[%clk
0:02:49.4]} 5... Nc6 {[%clk 0:02:58.6]} 6. Bb5 {[%clk 0:02:49.3]} 6... Nf6
{[%clk 0:02:59.2]} 7. O-O {[%clk 0:02:49.2]} 7... Be7 {[%clk 0:02:59.7]} 8. dxc5
{[%clk 0:02:45.1]} 8... Bxc5 {[%clk 0:03:00.6]} 9. Nbd2 {[%clk 0:02:43]} 9...
O-O {[%clk 0:03:00.6]} 10. Nb3 {[%clk 0:02:42.6]} 10... Bb6 {[%clk 0:03:01.3]}
11. Bg5 {[%clk 0:02:38.3]} 11... Be6 {[%clk 0:02:56]} 12. Rc1 {[%clk 0:02:25.4]}
12... h6 {[%clk 0:02:53.7]} 13. Bh4 {[%clk 0:02:24.8]} 13... g5 {[%clk
0:02:54.4]} 14. Bg3 {[%clk 0:02:04.4]} 14... Ne4 {[%clk 0:02:54.3]} 15. Nfd4
{[%clk 0:01:59]} 15... Nxd4 {[%clk 0:02:50.8]} 16. Nxd4 {[%clk 0:01:59.9]} 16...
Qf6 {[%clk 0:02:50]} 17. Qd3 {[%clk 0:01:33.6]} 17... Rac8 {[%clk 0:02:44.5]}
18. Rcd1 {[%clk 0:01:28.9]} 18... a6 {[%clk 0:02:40.4]} 19. Ba4 {[%clk
0:01:28.9]} 19... Bg4 {[%clk 0:02:28.8]} 20. f3 {[%clk 0:01:21]} 20... Nxg3
{[%clk 0:02:29.2]} 21. hxg3 {[%clk 0:01:09]} 21... Bf5 {[%clk 0:02:29.4]} 22.
Qd2 {[%clk 0:01:02.1]} 22... Bg6 {[%clk 0:02:24.2]} 23. Bb3 {[%clk 0:00:47.8]}
23... Rcd8 {[%clk 0:02:23.8]} 24. f4 {[%clk 0:00:44.7]} 24... Be4 {[%clk
0:02:18]} 25. fxg5 {[%clk 0:00:42.2]} 25... Qxg5 {[%clk 0:02:18.9]} 26. Qxg5+
{[%clk 0:00:42]} 26... hxg5 {[%clk 0:02:19.8]} 27. Rf6 {[%clk 0:00:42.1]} 27...
Bc7 {[%clk 0:02:16.8]} 28. Nf5 {[%clk 0:00:21.6]} 28... Be5 {[%clk 0:02:09.7]}
29. Ne7+ {[%clk 0:00:21]} 29... Kg7 {[%clk 0:02:10.1]} 30. Rb6 {[%clk
0:00:18.2]} 30... d4 {[%clk 0:02:04.8]} 31. Re1 {[%clk 0:00:18.7]} 31... dxc3
{[%clk 0:02:00.7]} 32. Rxe4 {[%clk 0:00:18.2]} 32... cxb2 {[%clk 0:02:01]} 33.
Bc2 {[%clk 0:00:12.5]} 33... f6 {[%clk 0:01:17.8]} 34. Nf5+ {[%clk 0:00:08.2]}
34... Kh8 {[%clk 0:01:04.9]} 35. Re2 {[%clk 0:00:02.8]} 35... Rf7 {[%clk
0:00:47.3]} 36. Kf2 {[%clk 0:00:03.2]} 36... Rc7 {[%clk 0:00:47.1]} 37. g4
{[%clk 0:00:02.5]} 37... Rdc8 {[%clk 0:00:46.8]} 38. Be4 {[%clk 0:00:02.1]}
38... Rc1 {[%clk 0:00:41.5]} 39. Rexb2 {[%clk 0:00:02]} 39... Bxb2 {[%clk
0:00:40.5]} 40. Rxb2 {[%clk 0:00:02.9]} 40... b5 {[%clk 0:00:41]} 41. Rd2 {[%clk
0:00:02.4]} 41... Ra1 {[%clk 0:00:38.6]} 42. Kf3 {[%clk 0:00:03.1]} 42... a5
{[%clk 0:00:37.2]} 43. Rd7 {[%clk 0:00:03.2]} 43... Rxa2 {[%clk 0:00:36.2]} 44.
Nd4 {[%clk 0:00:02.8]} 44... Rc3+ {[%clk 0:00:35.2]} 45. Bd3 {[%clk 0:00:01.9]}
45... Rxd3+ {[%clk 0:00:35.8]} 46. Ke4 {[%clk 0:00:02.8]} 46... Rxd4+ {[%clk
0:00:36.3]} 47. Rxd4 {[%clk 0:00:02.4]} 47... Ra4 {[%clk 0:00:36.3]} 48. Rxa4
{[%clk 0:00:01.5]} 48... bxa4 {[%clk 0:00:37.2]} 49. Kd4 {[%clk 0:00:02.4]}
49... Kg7 {[%clk 0:00:37.4]} 0-1

[Event "Early-Titled-Tuesday-Blitz-May-07-2024"]
[Site "Chess.com"]
[Date "2024.05.07"]
[Round "4"]
[White "sterpfi"]
[Black "cristianserban1"]
[Result "1-0"]
[WhiteElo "2331"]
[BlackElo "2618"]
[TimeControl "180+1"]
[EndTime "8:42:49 PDT"]
[Termination "sterpfi won by resignation"]

1. e4 {[%clk 0:03:00.9]} 1... c5 {[%clk 0:03:00.3]} 2. Nf3 {[%clk 0:03:00.3]}
2... g6 {[%clk 0:03:00.8]} 3. c3 {[%clk 0:02:55.5]} 3... Bg7 {[%clk 0:03:00.4]}
4. d4 {[%clk 0:02:55.9]} 4... cxd4 {[%clk 0:03:01]} 5. cxd4 {[%clk 0:02:56.8]}
5... d5 {[%clk 0:03:01.6]} 6. e5 {[%clk 0:02:50.1]} 6... Bg4 {[%clk 0:03:01.4]}
7. Nbd2 {[%clk 0:02:46.4]} 7... Nc6 {[%clk 0:02:56.6]} 8. Bb5 {[%clk 0:02:45.6]}
8... Qb6 {[%clk 0:02:54.4]} 9. Bxc6+ {[%clk 0:02:43.1]} 9... bxc6 {[%clk
0:02:54.8]} 10. h3 {[%clk 0:02:38.4]} 10... Bxf3 {[%clk 0:02:54]} 11. Nxf3
{[%clk 0:02:39.3]} 11... e6 {[%clk 0:02:45.5]} 12. O-O {[%clk 0:02:36.3]} 12...
Ne7 {[%clk 0:02:46]} 13. Bg5 {[%clk 0:02:30.6]} 13... Nc8 {[%clk 0:01:40.7]} 14.
Qc2 {[%clk 0:01:58.4]} 14... h6 {[%clk 0:01:39]} 15. Bh4 {[%clk 0:01:47.3]}
15... g5 {[%clk 0:01:37.3]} 16. Bg3 {[%clk 0:01:47.7]} 16... Ne7 {[%clk
0:01:37.7]} 17. Qc5 {[%clk 0:01:36.7]} 17... Qxc5 {[%clk 0:01:34.8]} 18. dxc5
{[%clk 0:01:37.6]} 18... Nf5 {[%clk 0:01:35.5]} 19. Bh2 {[%clk 0:01:16]} 19...
h5 {[%clk 0:01:24.3]} 20. g4 {[%clk 0:01:12.3]} 20... hxg4 {[%clk 0:01:20.7]}
21. hxg4 {[%clk 0:01:13.2]} 21... Nh6 {[%clk 0:01:20.8]} 22. Nd4 {[%clk
0:00:51.7]} 22... Nxg4 {[%clk 0:01:18.6]} 23. Bg3 {[%clk 0:00:52.2]} 23... Bxe5
{[%clk 0:01:18.7]} 24. Nxc6 {[%clk 0:00:50.1]} 24... Bxg3 {[%clk 0:01:12.7]} 25.
fxg3 {[%clk 0:00:51]} 25... Rc8 {[%clk 0:01:07.3]} 26. Nxa7 {[%clk 0:00:47.2]}
26... Rc7 {[%clk 0:00:53.4]} 27. Nb5 {[%clk 0:00:43.9]} 27... Rxc5 {[%clk
0:00:51.4]} 28. Rac1 {[%clk 0:00:40.3]} 28... Rxc1 {[%clk 0:00:27.4]} 29. Rxc1
{[%clk 0:00:41.2]} 29... Rh3 {[%clk 0:00:27.5]} 30. Rc3 {[%clk 0:00:29.3]} 30...
Rh2 {[%clk 0:00:17.6]} 31. Rb3 {[%clk 0:00:29.2]} 31... Rc2 {[%clk 0:00:14.2]}
32. a4 {[%clk 0:00:25.8]} 32... Ne5 {[%clk 0:00:06.8]} 33. a5 {[%clk 0:00:15.8]}
33... Nc4 {[%clk 0:00:06.6]} 34. a6 {[%clk 0:00:15.6]} 34... Rc1+ {[%clk
0:00:06.6]} 35. Kf2 {[%clk 0:00:14.7]} 35... Rc2+ {[%clk 0:00:03.7]} 36. Ke1
{[%clk 0:00:12.7]} 36... Rc1+ {[%clk 0:00:02]} 37. Ke2 {[%clk 0:00:13.2]} 37...
Ra1 {[%clk 0:00:01.7]} 38. a7 {[%clk 0:00:11.7]} 38... Kd7 {[%clk 0:00:00.4]}
39. Na3 {[%clk 0:00:10.4]} 39... Nxa3 {[%clk 0:00:00.7]} 40. Rxa3 {[%clk
0:00:10]} 40... Rxa3 {[%clk 0:00:00.6]} 41. bxa3 {[%clk 0:00:10.9]} 41... d4
{[%clk 0:00:00.9]} 42. a8=Q {[%clk 0:00:10.7]} 42... d3+ {[%clk 0:00:01.8]} 1-0

[Event "Early-Titled-Tuesday-Blitz-May-07-2024"]
[Site "Chess.com"]
[Date "2024.05.07"]
[Round "4"]
[White "SpongeBob_03"]
[Black "SkippingLaptop"]
[Result "0-1"]
[WhiteElo "2247"]
[BlackElo "2005"]
[TimeControl "180+1"]
[EndTime "8:42:49 PDT"]
[Termination "SkippingLaptop won on time"]

1. d4 {[%clk 0:02:40.6]} 1... Nf6 {[%clk 0:02:58.8]} 2. c4 {[%clk 0:02:38.1]}
2... e6 {[%clk 0:02:58]} 3. Nc3 {[%clk 0:02:38.5]} 3... Bb4 {[%clk 0:02:56.5]}
4. Qc2 {[%clk 0:02:37.1]} 4... O-O {[%clk 0:02:54.6]} 5. e3 {[%clk 0:02:35.4]}
5... d5 {[%clk 0:02:51.5]} 6. Bd3 {[%clk 0:02:29.5]} 6... c5 {[%clk 0:02:47.9]}
7. Nf3 {[%clk 0:02:28.5]} 7... Nc6 {[%clk 0:02:46.3]} 8. O-O {[%clk 0:02:25.5]}
8... Bxc3 {[%clk 0:02:43.1]} 9. bxc3 {[%clk 0:02:25]} 9... dxc4 {[%clk
0:02:43.1]} 10. Bxc4 {[%clk 0:02:25]} 10... Qc7 {[%clk 0:02:42.2]} 11. Ba3
{[%clk 0:02:21.5]} 11... b6 {[%clk 0:02:41.4]} 12. dxc5 {[%clk 0:02:17.3]} 12...
Na5 {[%clk 0:02:39.7]} 13. Bd3 {[%clk 0:01:52.4]} 13... Rd8 {[%clk 0:02:33.2]}
14. Rfd1 {[%clk 0:01:37.7]} 14... Bb7 {[%clk 0:02:28.4]} 15. cxb6 {[%clk
0:01:36]} 15... axb6 {[%clk 0:02:27.2]} 16. Nd4 {[%clk 0:01:33.6]} 16... Nc4
{[%clk 0:02:24.3]} 17. Bxc4 {[%clk 0:01:10.1]} 17... Qxc4 {[%clk 0:02:22.2]} 18.
Be7 {[%clk 0:01:10.1]} 18... Rd7 {[%clk 0:02:11.8]} 19. Bxf6 {[%clk 0:01:08.8]}
19... gxf6 {[%clk 0:02:12.2]} 20. Rdb1 {[%clk 0:00:31.1]} 20... Qd5 {[%clk
0:02:08.3]} 21. f3 {[%clk 0:00:26.7]} 21... Qg5 {[%clk 0:02:07.7]} 22. Rxb6
{[%clk 0:00:23.4]} 22... Qxe3+ {[%clk 0:02:04.4]} 23. Qf2 {[%clk 0:00:20.8]}
23... Qxc3 {[%clk 0:02:01.2]} 24. Rab1 {[%clk 0:00:12.7]} 24... Bd5 {[%clk
0:01:52.2]} 25. Ne2 {[%clk 0:00:10.4]} 25... Qc7 {[%clk 0:01:48.8]} 26. Qg3+
{[%clk 0:00:02.5]} 26... Qxg3 {[%clk 0:01:47.3]} 27. Nxg3 {[%clk 0:00:03.4]}
27... Rxa2 {[%clk 0:01:46.2]} 28. Rb8+ {[%clk 0:00:04.3]} 28... Kg7 {[%clk
0:01:43.5]} 29. Nh5+ {[%clk 0:00:05.2]} 29... Kg6 {[%clk 0:01:42]} 30. Nf4+
{[%clk 0:00:06.1]} 30... Kf5 {[%clk 0:01:41.3]} 31. Nh3 {[%clk 0:00:05.7]} 31...
Ke5 {[%clk 0:01:10.5]} 32. R8b6 {[%clk 0:00:02.9]} 32... f5 {[%clk 0:01:04.1]}
33. Re1+ {[%clk 0:00:03.5]} 33... Kf6 {[%clk 0:01:03.5]} 34. Nf4 {[%clk
0:00:04.4]} 34... Bb7 {[%clk 0:00:54.9]} 35. Nh5+ {[%clk 0:00:02.7]} 35... Kg5
{[%clk 0:00:51.7]} 36. Ng3 {[%clk 0:00:03.2]} 36... Ba8 {[%clk 0:00:45.2]} 37.
Re2 {[%clk 0:00:01.7]} 37... Rd1+ {[%clk 0:00:41.6]} 38. Kf2 {[%clk 0:00:02]}
38... Rxe2+ {[%clk 0:00:39.6]} 39. Nxe2 {[%clk 0:00:02.9]} 39... Rd2 {[%clk
0:00:36.8]} 40. Ke3 {[%clk 0:00:03.1]} 40... Ra2 {[%clk 0:00:35.5]} 41. f4+
{[%clk 0:00:04]} 41... Kf6 {[%clk 0:00:34.4]} 42. g3 {[%clk 0:00:03.8]} 42...
Bd5 {[%clk 0:00:33.3]} 43. Nd4 {[%clk 0:00:02.6]} 43... Rxh2 {[%clk 0:00:30.4]}
0-1

[Event "Early-Titled-Tuesday-Blitz-May-07-2024"]
[Site "Chess.com"]
[Date "2024.05.07"]
[Round "4"]
[White "Revan_2002"]
[Black "2346PL"]
[Result "1-0"]
[WhiteElo "2739"]
[BlackElo "2543"]
[TimeControl "180+1"]
[EndTime "8:42:50 PDT"]
[Termination "Revan_2002 won on time"]

1. c4 {[%clk 0:03:00.9]} 1... f5 {[%clk 0:02:56.9]} 2. Nc3 {[%clk 0:03:00.3]}
2... Nf6 {[%clk 0:02:57.4]} 3. d3 {[%clk 0:03:00.8]} 3... g6 {[%clk 0:02:58]} 4.
g3 {[%clk 0:03:01.1]} 4... Bg7 {[%clk 0:02:58.5]} 5. Bg2 {[%clk 0:03:01.8]} 5...
O-O {[%clk 0:02:59.1]} 6. e4 {[%clk 0:03:02.4]} 6... d6 {[%clk 0:02:58.5]} 7.
Nge2 {[%clk 0:03:01.8]} 7... Nc6 {[%clk 0:02:56.8]} 8. O-O {[%clk 0:03:02.1]}
8... e5 {[%clk 0:02:52]} 9. h3 {[%clk 0:03:01.3]} 9... f4 {[%clk 0:02:45.9]} 10.
gxf4 {[%clk 0:03:00.1]} 10... Nh5 {[%clk 0:02:46.5]} 11. fxe5 {[%clk 0:02:55.5]}
11... dxe5 {[%clk 0:02:46.7]} 12. Nd5 {[%clk 0:02:48.1]} 12... Be6 {[%clk
0:02:31.6]} 13. f4 {[%clk 0:02:42.1]} 13... Qd7 {[%clk 0:02:31.7]} 14. Kh2
{[%clk 0:01:42.5]} 14... exf4 {[%clk 0:02:31.4]} 15. Nexf4 {[%clk 0:01:42.7]}
15... Be5 {[%clk 0:02:31.7]} 16. Kg1 {[%clk 0:01:32]} 16... Nxf4 {[%clk
0:02:08.7]} 17. Bxf4 {[%clk 0:01:25]} 17... Bxh3 {[%clk 0:02:00]} 18. Bh6 {[%clk
0:01:13.4]} 18... Bd4+ {[%clk 0:01:51.6]} 19. Kh2 {[%clk 0:01:03.7]} 19... Be5+
{[%clk 0:01:49.4]} 20. Kg1 {[%clk 0:00:45.1]} 20... Bd4+ {[%clk 0:01:46.3]} 21.
Kh2 {[%clk 0:00:44]} 21... Be5+ {[%clk 0:01:45.5]} 22. Bf4 {[%clk 0:00:44.5]}
22... Bxg2 {[%clk 0:01:38.4]} 23. Kxg2 {[%clk 0:00:44]} 23... Bxf4 {[%clk
0:01:25.1]} 24. Nxf4 {[%clk 0:00:40.4]} 24... Ne5 {[%clk 0:01:21.4]} 25. Nd5
{[%clk 0:00:28.4]} 25... Kg7 {[%clk 0:01:17.8]} 26. Qe2 {[%clk 0:00:25.9]} 26...
c6 {[%clk 0:01:16.8]} 27. Nf4 {[%clk 0:00:20.5]} 27... g5 {[%clk 0:01:06.1]} 28.
Nh5+ {[%clk 0:00:19.9]} 28... Kg6 {[%clk 0:01:06.5]} 29. Ng3 {[%clk 0:00:16.4]}
29... Qxd3 {[%clk 0:01:03]} 30. Qh5+ {[%clk 0:00:15.6]} 30... Kg7 {[%clk
0:00:58.9]} 31. Qxg5+ {[%clk 0:00:13.7]} 31... Ng6 {[%clk 0:00:59.3]} 32. Rad1
{[%clk 0:00:11.2]} 32... Qc2+ {[%clk 0:00:51.1]} 33. Rd2 {[%clk 0:00:11.3]}
33... Qxc4 {[%clk 0:00:41.8]} 34. Rd7+ {[%clk 0:00:08.8]} 34... Kh8 {[%clk
0:00:40.6]} 35. Qh6 {[%clk 0:00:03.7]} 35... Qc2+ {[%clk 0:00:24.9]} 36. Kh3
{[%clk 0:00:02.3]} 36... Nf4+ {[%clk 0:00:02]} 37. Rxf4 {[%clk 0:00:02.3]} 1-0

[Event "Early-Titled-Tuesday-Blitz-May-07-2024"]
[Site "Chess.com"]
[Date "2024.05.07"]
[Round "4"]
[White "Crasmus"]
[Black "mortngabriel"]
[Result "1-0"]
[WhiteElo "2356"]
[BlackElo "2497"]
[TimeControl "180+1"]
[EndTime "8:42:50 PDT"]
[Termination "Crasmus won on time"]

1. c4 {[%clk 0:03:00.9]} 1... e5 {[%clk 0:02:56.4]} 2. g3 {[%clk 0:03:01.8]}
2... c6 {[%clk 0:02:56.1]} 3. d4 {[%clk 0:03:01]} 3... e4 {[%clk 0:02:56.1]} 4.
d5 {[%clk 0:02:59.9]} 4... Bb4+ {[%clk 0:02:53.1]} 5. Bd2 {[%clk 0:02:56]} 5...
Qe7 {[%clk 0:02:51.4]} 6. a3 {[%clk 0:02:54.6]} 6... Bxd2+ {[%clk 0:02:51]} 7.
Qxd2 {[%clk 0:02:55.2]} 7... cxd5 {[%clk 0:02:49]} 8. cxd5 {[%clk 0:02:54.7]}
8... d6 {[%clk 0:02:49.4]} 9. Nc3 {[%clk 0:02:50.2]} 9... Nf6 {[%clk 0:02:49.7]}
10. Bg2 {[%clk 0:02:49]} 10... O-O {[%clk 0:02:49.6]} 11. Nh3 {[%clk 0:02:44.8]}
11... Re8 {[%clk 0:02:35.4]} 12. e3 {[%clk 0:02:41.5]} 12... Nbd7 {[%clk
0:02:33.4]} 13. O-O {[%clk 0:02:40.6]} 13... Nc5 {[%clk 0:02:28.2]} 14. Qc2
{[%clk 0:02:35.2]} 14... Bf5 {[%clk 0:02:15.3]} 15. Nf4 {[%clk 0:02:33.9]} 15...
Rac8 {[%clk 0:02:09.1]} 16. Rfd1 {[%clk 0:02:11.4]} 16... Ng4 {[%clk 0:01:58.7]}
17. h3 {[%clk 0:01:41.9]} 17... Ne5 {[%clk 0:01:58.2]} 18. g4 {[%clk 0:01:42.3]}
18... Bg6 {[%clk 0:01:26.6]} 19. Nxg6 {[%clk 0:01:41.9]} 19... Nxg6 {[%clk
0:01:24.9]} 20. b4 {[%clk 0:01:35.1]} 20... Na4 {[%clk 0:01:22.7]} 21. Qxa4
{[%clk 0:01:32.7]} 21... Rxc3 {[%clk 0:01:21.8]} 22. Qxa7 {[%clk 0:01:32.6]}
22... Rc2 {[%clk 0:01:13.3]} 23. Rac1 {[%clk 0:01:19.8]} 23... Ra2 {[%clk
0:01:03.2]} 24. Rc4 {[%clk 0:01:19.2]} 24... Qf6 {[%clk 0:00:58.4]} 25. Rf1
{[%clk 0:01:19.1]} 25... Nh4 {[%clk 0:00:31.1]} 26. Rxe4 {[%clk 0:01:14.4]}
26... Rf8 {[%clk 0:00:20.6]} 27. Rf4 {[%clk 0:00:55.5]} 27... Qb2 {[%clk
0:00:19.7]} 28. Qxb7 {[%clk 0:00:53.9]} 28... Rxa3 {[%clk 0:00:18.9]} 29. Qc6
{[%clk 0:00:47.2]} 29... g5 {[%clk 0:00:12]} 30. Rd4 {[%clk 0:00:32.7]} 30...
Ra1 {[%clk 0:00:11.8]} 31. Qxd6 {[%clk 0:00:27.8]} 31... Rxf1+ {[%clk
0:00:09.6]} 32. Bxf1 {[%clk 0:00:17.2]} 32... Nf3+ {[%clk 0:00:09]} 33. Kg2
{[%clk 0:00:18.1]} 33... Nxd4 {[%clk 0:00:09.9]} 34. exd4 {[%clk 0:00:18.9]}
34... Qxd4 {[%clk 0:00:09.8]} 35. Qc5 {[%clk 0:00:17.5]} 35... Qe4+ {[%clk
0:00:09.7]} 36. Kg1 {[%clk 0:00:15.5]} 36... Re8 {[%clk 0:00:07.4]} 37. d6
{[%clk 0:00:14.6]} 37... Qb1 {[%clk 0:00:06.1]} 38. Qxg5+ {[%clk 0:00:13.8]}
38... Kh8 {[%clk 0:00:05]} 39. Qf6+ {[%clk 0:00:12.3]} 39... Kg8 {[%clk
0:00:05]} 40. Qg5+ {[%clk 0:00:12.7]} 40... Kh8 {[%clk 0:00:05]} 41. d7 {[%clk
0:00:12.1]} 41... Rg8 {[%clk 0:00:03.1]} 42. Qf6+ {[%clk 0:00:10.7]} 1-0

[Event "Early-Titled-Tuesday-Blitz-May-07-2024"]
[Site "Chess.com"]
[Date "2024.05.07"]
[Round "4"]
[White "GMT4114"]
[Black "Sofia_Blokhin"]
[Result "0-1"]
[WhiteElo "1972"]
[BlackElo "2272"]
[TimeControl "180+1"]
[EndTime "8:42:50 PDT"]
[Termination "Sofia_Blokhin won on time"]

1. e4 {[%clk 0:03:00.9]} 1... c5 {[%clk 0:02:59.5]} 2. Nc3 {[%clk 0:03:00.8]}
2... e6 {[%clk 0:02:59]} 3. Nge2 {[%clk 0:03:00.5]} 3... a6 {[%clk 0:02:57.2]}
4. g3 {[%clk 0:03:00.8]} 4... Nc6 {[%clk 0:02:56.2]} 5. Bg2 {[%clk 0:03:00.7]}
5... g6 {[%clk 0:02:56.6]} 6. O-O {[%clk 0:02:59]} 6... Bg7 {[%clk 0:02:56.6]}
7. f4 {[%clk 0:02:58.8]} 7... Nge7 {[%clk 0:02:56.3]} 8. e5 {[%clk 0:02:45.1]}
8... O-O {[%clk 0:02:54.7]} 9. Ne4 {[%clk 0:02:44.8]} 9... b6 {[%clk 0:02:42.5]}
10. g4 {[%clk 0:02:30.1]} 10... f6 {[%clk 0:02:22]} 11. exf6 {[%clk 0:02:26.8]}
11... Bxf6 {[%clk 0:02:21.7]} 12. Nxf6+ {[%clk 0:02:26.9]} 12... Rxf6 {[%clk
0:02:21.5]} 13. b3 {[%clk 0:02:25.7]} 13... d5 {[%clk 0:02:19.7]} 14. Bb2 {[%clk
0:02:21.3]} 14... d4 {[%clk 0:02:19.6]} 15. c3 {[%clk 0:02:18.7]} 15... d3
{[%clk 0:02:03.5]} 16. Ng3 {[%clk 0:02:08.2]} 16... Rf8 {[%clk 0:01:47.1]} 17.
c4 {[%clk 0:01:45.7]} 17... Ra7 {[%clk 0:01:38.5]} 18. Ne4 {[%clk 0:01:40.8]}
18... Nd4 {[%clk 0:01:35.5]} 19. Kh1 {[%clk 0:01:11.1]} 19... Bb7 {[%clk
0:01:26.1]} 20. Qe1 {[%clk 0:01:00.2]} 20... Nc2 {[%clk 0:01:12.9]} 21. Qh4
{[%clk 0:00:57.1]} 21... Nd4 {[%clk 0:00:37]} 22. g5 {[%clk 0:00:43.2]} 22...
Nef5 {[%clk 0:00:33.5]} 23. Qh3 {[%clk 0:00:35.4]} 23... Qa8 {[%clk 0:00:32.4]}
24. Rae1 {[%clk 0:00:26.1]} 24... Ne2 {[%clk 0:00:24.5]} 25. Nf6+ {[%clk
0:00:19.2]} 25... Rxf6 {[%clk 0:00:23.4]} 26. Bxf6 {[%clk 0:00:15.4]} 26... Nh4
{[%clk 0:00:15.6]} 27. Rf2 {[%clk 0:00:03.9]} 27... Bxg2+ {[%clk 0:00:12.7]} 28.
Rxg2 {[%clk 0:00:04.2]} 28... Qxg2+ {[%clk 0:00:11.8]} 29. Qxg2 {[%clk
0:00:03.5]} 29... Nxg2 {[%clk 0:00:11.9]} 30. Kxg2 {[%clk 0:00:03.4]} 30...
Nxf4+ {[%clk 0:00:12]} 31. Kf3 {[%clk 0:00:03.4]} 31... Nh5 {[%clk 0:00:08]} 32.
Rxe6 {[%clk 0:00:03.2]} 32... Nxf6 {[%clk 0:00:07.7]} 33. Rxf6 {[%clk
0:00:04.1]} 33... Re7 {[%clk 0:00:06.3]} 34. Rd6 {[%clk 0:00:02.3]} 34... Re2
{[%clk 0:00:06.1]} 35. Rxd3 {[%clk 0:00:02.4]} 35... Rxh2 {[%clk 0:00:06.5]} 36.
Kg3 {[%clk 0:00:01.8]} 36... Rh5 {[%clk 0:00:06.3]} 37. Kf4 {[%clk 0:00:02]}
37... Rh1 {[%clk 0:00:06.5]} 38. Rd6 {[%clk 0:00:00.9]} 38... Ra1 {[%clk
0:00:05.9]} 0-1

[Event "Early-Titled-Tuesday-Blitz-May-07-2024"]
[Site "Chess.com"]
[Date "2024.05.07"]
[Round "4"]
[White "GeorgiosSouleidis"]
[Black "Levanzovsky"]
[Result "1-0"]
[WhiteElo "2708"]
[BlackElo "2497"]
[TimeControl "180+1"]
[EndTime "8:42:52 PDT"]
[Termination "GeorgiosSouleidis won on time"]

1. e4 {[%clk 0:03:00.9]} 1... c5 {[%clk 0:02:57.5]} 2. Be2 {[%clk 0:03:00.7]}
2... Nc6 {[%clk 0:02:56.9]} 3. d3 {[%clk 0:03:01.1]} 3... d6 {[%clk 0:02:55.1]}
4. f4 {[%clk 0:03:01.7]} 4... g6 {[%clk 0:02:54.6]} 5. Nf3 {[%clk 0:03:02.2]}
5... Bg7 {[%clk 0:02:53.7]} 6. O-O {[%clk 0:03:03.1]} 6... Bg4 {[%clk 0:02:46]}
7. c3 {[%clk 0:03:03.4]} 7... e6 {[%clk 0:02:45.6]} 8. Be3 {[%clk 0:03:03.6]}
8... Bxf3 {[%clk 0:02:45.2]} 9. Bxf3 {[%clk 0:03:03.7]} 9... Nge7 {[%clk
0:02:45.9]} 10. Na3 {[%clk 0:03:01.5]} 10... O-O {[%clk 0:02:45.1]} 11. Qd2
{[%clk 0:02:59.8]} 11... Rb8 {[%clk 0:02:43.9]} 12. d4 {[%clk 0:02:56.2]} 12...
cxd4 {[%clk 0:02:43]} 13. cxd4 {[%clk 0:02:57]} 13... d5 {[%clk 0:02:42.3]} 14.
e5 {[%clk 0:02:55.7]} 14... Nf5 {[%clk 0:02:41.1]} 15. Bf2 {[%clk 0:02:55.9]}
15... h5 {[%clk 0:02:37.9]} 16. Rac1 {[%clk 0:02:48.6]} 16... Qb6 {[%clk
0:02:29.8]} 17. Rfd1 {[%clk 0:02:41.4]} 17... Rfc8 {[%clk 0:02:28.8]} 18. b3
{[%clk 0:01:50]} 18... Bf8 {[%clk 0:02:06.2]} 19. Nc2 {[%clk 0:01:47.7]} 19...
a5 {[%clk 0:01:57.6]} 20. g4 {[%clk 0:01:31.2]} 20... hxg4 {[%clk 0:01:56.6]}
21. Bxg4 {[%clk 0:01:32.1]} 21... Nce7 {[%clk 0:01:49.9]} 22. Ne3 {[%clk
0:01:06.6]} 22... Bh6 {[%clk 0:01:38.7]} 23. Nxf5 {[%clk 0:01:03.6]} 23... Nxf5
{[%clk 0:01:38.8]} 24. Bxf5 {[%clk 0:01:03.3]} 24... gxf5 {[%clk 0:01:37]} 25.
Bh4 {[%clk 0:00:53.3]} 25... Kh7 {[%clk 0:01:34.5]} 26. Kh1 {[%clk 0:00:53.2]}
26... Rxc1 {[%clk 0:01:28.7]} 27. Rxc1 {[%clk 0:00:54.1]} 27... Rg8 {[%clk
0:01:28.8]} 28. Bg5 {[%clk 0:00:49.7]} 28... Bxg5 {[%clk 0:01:06.8]} 29. fxg5
{[%clk 0:00:50.6]} 29... Kg6 {[%clk 0:01:07.2]} 30. Kg2 {[%clk 0:00:38.4]} 30...
Rh8 {[%clk 0:01:07.3]} 31. Kg3 {[%clk 0:00:37.9]} 31... a4 {[%clk 0:00:44.1]}
32. b4 {[%clk 0:00:33.3]} 32... a3 {[%clk 0:00:40.2]} 33. h4 {[%clk 0:00:33.3]}
33... Qb5 {[%clk 0:00:40.1]} 34. Kh3 {[%clk 0:00:15.2]} 34... Qd7 {[%clk
0:00:11.2]} 35. Kg3 {[%clk 0:00:15]} 35... Rc8 {[%clk 0:00:09.6]} 36. h5+ {[%clk
0:00:09.3]} 36... Kxh5 {[%clk 0:00:05.1]} 37. Qh2+ {[%clk 0:00:07.5]} 37... Kxg5
{[%clk 0:00:05.6]} 38. Qh4+ {[%clk 0:00:03.7]} 38... Kg6 {[%clk 0:00:06]} 39.
Rg1 {[%clk 0:00:03.9]} 39... Rc2 {[%clk 0:00:01.4]} 40. Kf4+ {[%clk 0:00:04.4]}
1-0